[Event "*** Titled Tuesday Blitz"]
[Site "Chess.com"]
[Date "2020.03.03"]
[Round "4"]
[White "DACF2905"]
[Black "Mikhail_Golubev"]
[Result "0-1"]
[WhiteElo "2215"]
[BlackElo "2523"]
[TimeControl "180+1"]
[EndTime "9:41:10 PST"]
[Termination "Mikhail_Golubev won on time"]

1. c4 {[%clk 0:03:00.9]} 1... g6 {[%clk 0:02:59]} 2. Nc3 {[%clk 0:02:59.7]} 2...
Bg7 {[%clk 0:02:58.8]} 3. d4 {[%clk 0:03:00.6]} 3... Nf6 {[%clk 0:02:56.8]} 4.
Nf3 {[%clk 0:03:00.4]} 4... O-O {[%clk 0:02:54.8]} 5. g3 {[%clk 0:03:00.2]} 5...
d6 {[%clk 0:02:54.1]} 6. Bg2 {[%clk 0:03:00]} 6... Nbd7 {[%clk 0:02:53.9]} 7.
O-O {[%clk 0:02:59.6]} 7... e5 {[%clk 0:02:53.9]} 8. dxe5 {[%clk 0:02:55.7]}
8... dxe5 {[%clk 0:02:53.4]} 9. e4 {[%clk 0:02:54.4]} 9... c6 {[%clk 0:02:50.4]}
10. Bg5 {[%clk 0:02:50]} 10... h6 {[%clk 0:02:39.3]} 11. Bxf6 {[%clk 0:02:49.7]}
11... Qxf6 {[%clk 0:02:36.1]} 12. b3 {[%clk 0:02:48.6]} 12... Qe7 {[%clk
0:02:35.6]} 13. Qc2 {[%clk 0:02:47.5]} 13... a5 {[%clk 0:02:33.8]} 14. Rad1
{[%clk 0:02:46.8]} 14... Nc5 {[%clk 0:02:33.7]} 15. h3 {[%clk 0:02:39.3]} 15...
f5 {[%clk 0:02:32.4]} 16. Nh4 {[%clk 0:02:36]} 16... Qf6 {[%clk 0:02:15.8]} 17.
exf5 {[%clk 0:02:20.4]} 17... gxf5 {[%clk 0:02:12.6]} 18. Rfe1 {[%clk
0:02:11.2]} 18... Be6 {[%clk 0:01:49.9]} 19. Kh2 {[%clk 0:00:14.6]} 19... e4
{[%clk 0:01:41.2]} 20. Ne2 {[%clk 0:00:14.1]} 20... Nd3 {[%clk 0:01:41.2]} 21.
Rxd3 {[%clk 0:00:10.8]} 21... exd3 {[%clk 0:01:40.3]} 22. Qxd3 {[%clk
0:00:11.7]} 22... Rad8 {[%clk 0:01:36]} 23. Qc2 {[%clk 0:00:10.6]} 23... Qb2
{[%clk 0:01:18.5]} 24. Qxb2 {[%clk 0:00:09.6]} 24... Bxb2 {[%clk 0:01:17.9]} 25.
Nf4 {[%clk 0:00:10.5]} 25... Bc8 {[%clk 0:01:14.3]} 26. Re7 {[%clk 0:00:09.6]}
26... Rf7 {[%clk 0:01:12]} 27. Re2 {[%clk 0:00:07.6]} 27... Bf6 {[%clk
0:01:07.4]} 28. Nhg6 {[%clk 0:00:07.5]} 28... Kg7 {[%clk 0:01:07]} 29. Ne5
{[%clk 0:00:05.3]} 29... Re7 {[%clk 0:01:06.6]} 30. Nf3 {[%clk 0:00:03.9]} 30...
Rxe2 {[%clk 0:01:05.1]} 31. Nxe2 {[%clk 0:00:04.8]} 31... Be6 {[%clk 0:00:58.8]}
32. Nf4 {[%clk 0:00:05.7]} 32... Bf7 {[%clk 0:00:58.7]} 33. Bf1 {[%clk
0:00:03.5]} 33... Bg5 {[%clk 0:00:54.7]} 34. Nd3 {[%clk 0:00:01.4]} 34... Bh5
{[%clk 0:00:49.5]} 0-1

[Event "*** Titled Tuesday Blitz"]
[Site "Chess.com"]
[Date "2020.03.03"]
[Round "4"]
[White "Indianlad"]
[Black "kleinebeer98"]
[Result "1-0"]
[WhiteElo "2955"]
[BlackElo "2711"]
[TimeControl "180+1"]
[EndTime "9:41:12 PST"]
[Termination "Indianlad won by checkmate"]

1. c4 {[%clk 0:03:00.9]} 1... Nf6 {[%clk 0:02:56.5]} 2. Nc3 {[%clk 0:03:01.1]}
2... g6 {[%clk 0:02:56.8]} 3. e4 {[%clk 0:03:00.8]} 3... d6 {[%clk 0:02:57.2]}
4. d4 {[%clk 0:03:01]} 4... Bg7 {[%clk 0:02:57.8]} 5. f3 {[%clk 0:03:01.5]} 5...
O-O {[%clk 0:02:56.6]} 6. Nge2 {[%clk 0:03:02.1]} 6... c5 {[%clk 0:02:56.6]} 7.
d5 {[%clk 0:03:02.6]} 7... a6 {[%clk 0:02:55.3]} 8. a4 {[%clk 0:03:00.3]} 8...
e6 {[%clk 0:02:52.6]} 9. Ng3 {[%clk 0:03:00.1]} 9... exd5 {[%clk 0:02:52.3]} 10.
cxd5 {[%clk 0:03:00.5]} 10... h5 {[%clk 0:02:51.5]} 11. Bg5 {[%clk 0:03:00.4]}
11... Qb6 {[%clk 0:02:51]} 12. Qd2 {[%clk 0:03:01]} 12... Nbd7 {[%clk
0:02:48.2]} 13. Be2 {[%clk 0:02:59.7]} 13... Re8 {[%clk 0:02:43.3]} 14. a5
{[%clk 0:02:46.6]} 14... Qc7 {[%clk 0:02:39.6]} 15. O-O {[%clk 0:02:46.3]} 15...
Rb8 {[%clk 0:02:33.4]} 16. f4 {[%clk 0:02:11.8]} 16... b5 {[%clk 0:02:32.9]} 17.
e5 {[%clk 0:02:07.7]} 17... dxe5 {[%clk 0:02:18.2]} 18. f5 {[%clk 0:02:08.2]}
18... e4 {[%clk 0:02:10.3]} 19. fxg6 {[%clk 0:02:07.1]} 19... fxg6 {[%clk
0:02:11.2]} 20. Bf4 {[%clk 0:01:48.5]} 20... Qa7 {[%clk 0:01:47.1]} 21. Bxb8
{[%clk 0:01:38.7]} 21... Qxb8 {[%clk 0:01:48]} 22. Qg5 {[%clk 0:01:38.9]} 22...
b4 {[%clk 0:01:34.7]} 23. Qxg6 {[%clk 0:01:34.7]} 23... bxc3 {[%clk 0:01:22.9]}
24. Nf5 {[%clk 0:01:32.6]} 24... Re7 {[%clk 0:01:03.3]} 25. Nxe7+ {[%clk
0:01:32.4]} 25... Kh8 {[%clk 0:00:59.3]} 26. Nf5 {[%clk 0:01:10.6]} 26... Bf8
{[%clk 0:00:57.1]} 27. bxc3 {[%clk 0:01:06.9]} 27... Qe5 {[%clk 0:00:52.8]} 28.
Bxh5 {[%clk 0:01:03.2]} 28... Bb7 {[%clk 0:00:46.3]} 29. Nh6 {[%clk 0:00:58.8]}
29... Bxh6 {[%clk 0:00:44.7]} 30. Qxh6+ {[%clk 0:00:59.5]} 30... Kg8 {[%clk
0:00:45.6]} 31. Bg6 {[%clk 0:00:51.4]} 31... Bxd5 {[%clk 0:00:35]} 32. Rf5
{[%clk 0:00:51.5]} 32... Qxc3 {[%clk 0:00:34]} 33. Raf1 {[%clk 0:00:51.4]} 33...
Qd4+ {[%clk 0:00:32.2]} 34. Kh1 {[%clk 0:00:50]} 34... e3 {[%clk 0:00:33.1]} 35.
Rg5 {[%clk 0:00:46.3]} 35... e2 {[%clk 0:00:23.3]} 36. Bh5# {[%clk 0:00:46.1]}
1-0

[Event "*** Titled Tuesday Blitz"]
[Site "Chess.com"]
[Date "2020.03.03"]
[Round "4"]
[White "cottage_cheese"]
[Black "GulamaliRises"]
[Result "0-1"]
[WhiteElo "2316"]
[BlackElo "2536"]
[TimeControl "180+1"]
[EndTime "9:41:16 PST"]
[Termination "GulamaliRises won on time"]

1. e4 {[%clk 0:03:00.9]} 1... c5 {[%clk 0:02:59.9]} 2. Nf3 {[%clk 0:03:00.6]}
2... e6 {[%clk 0:03:00.4]} 3. c3 {[%clk 0:03:00.4]} 3... d5 {[%clk 0:02:56.8]}
4. exd5 {[%clk 0:03:00.2]} 4... Qxd5 {[%clk 0:02:57.7]} 5. d4 {[%clk 0:02:59.8]}
5... Nf6 {[%clk 0:02:58]} 6. Na3 {[%clk 0:02:59.6]} 6... cxd4 {[%clk 0:02:36.2]}
7. Nb5 {[%clk 0:02:59.2]} 7... Qd8 {[%clk 0:02:36.2]} 8. Nbxd4 {[%clk
0:02:56.9]} 8... Be7 {[%clk 0:02:27.2]} 9. Be2 {[%clk 0:02:52]} 9... O-O {[%clk
0:02:26.8]} 10. O-O {[%clk 0:02:51.5]} 10... a6 {[%clk 0:02:16.5]} 11. Ne5
{[%clk 0:02:45.9]} 11... Qc7 {[%clk 0:02:15.2]} 12. Ndf3 {[%clk 0:02:06.6]}
12... Rd8 {[%clk 0:02:00.2]} 13. Qc2 {[%clk 0:01:59.3]} 13... Nbd7 {[%clk
0:01:51.7]} 14. Bf4 {[%clk 0:01:52.4]} 14... Bd6 {[%clk 0:01:50.1]} 15. Nxd7
{[%clk 0:01:41.6]} 15... Bxf4 {[%clk 0:01:49.8]} 16. Nxf6+ {[%clk 0:01:40.9]}
16... gxf6 {[%clk 0:01:50.7]} 17. Rad1 {[%clk 0:01:30.2]} 17... Bd7 {[%clk
0:01:49.9]} 18. g3 {[%clk 0:00:59.1]} 18... Bh6 {[%clk 0:01:39.6]} 19. Nd4
{[%clk 0:00:56.7]} 19... Be8 {[%clk 0:01:02.2]} 20. Bf3 {[%clk 0:00:53.2]} 20...
Rd6 {[%clk 0:00:56.9]} 21. Nb3 {[%clk 0:00:39.8]} 21... Rad8 {[%clk 0:00:51.8]}
22. Rxd6 {[%clk 0:00:40]} 22... Rxd6 {[%clk 0:00:52.7]} 23. Rd1 {[%clk
0:00:39.5]} 23... b5 {[%clk 0:00:50.6]} 24. Rxd6 {[%clk 0:00:37.2]} 24... Qxd6
{[%clk 0:00:51.5]} 25. Kg2 {[%clk 0:00:24.4]} 25... f5 {[%clk 0:00:51.1]} 26.
Nd4 {[%clk 0:00:20.5]} 26... Bd7 {[%clk 0:00:41.9]} 27. h4 {[%clk 0:00:14.3]}
27... Bg7 {[%clk 0:00:42]} 28. Ne2 {[%clk 0:00:11.6]} 28... e5 {[%clk
0:00:39.9]} 29. Ng1 {[%clk 0:00:09.2]} 29... e4 {[%clk 0:00:37.3]} 30. Be2
{[%clk 0:00:05.3]} 30... f4 {[%clk 0:00:37.3]} 31. Bh5 {[%clk 0:00:01.5]} 31...
f3+ {[%clk 0:00:34.6]} 0-1

[Event "*** Titled Tuesday Blitz"]
[Site "Chess.com"]
[Date "2020.03.03"]
[Round "4"]
[White "CheckThis4"]
[Black "DonPreuss"]
[Result "1-0"]
[WhiteElo "2559"]
[BlackElo "2184"]
[TimeControl "180+1"]
[EndTime "9:41:22 PST"]
[Termination "CheckThis4 won on time"]

1. d4 {[%clk 0:02:51.6]} 1... Nc6 {[%clk 0:02:59.4]} 2. Bg5 {[%clk 0:02:49.2]}
2... f6 {[%clk 0:02:59]} 3. Bh4 {[%clk 0:02:47.7]} 3... e5 {[%clk 0:02:57.2]} 4.
dxe5 {[%clk 0:02:46.9]} 4... Bc5 {[%clk 0:02:57]} 5. Nf3 {[%clk 0:02:46.1]} 5...
Qe7 {[%clk 0:02:56.4]} 6. Nc3 {[%clk 0:02:40]} 6... Nxe5 {[%clk 0:02:53.7]} 7.
Nd5 {[%clk 0:02:38.1]} 7... Nxf3+ {[%clk 0:02:53.7]} 8. gxf3 {[%clk 0:02:37.3]}
8... Qd8 {[%clk 0:02:42.3]} 9. e4 {[%clk 0:02:34.7]} 9... d6 {[%clk 0:02:40.2]}
10. Bc4 {[%clk 0:02:33.3]} 10... Bh3 {[%clk 0:02:22.6]} 11. Rg1 {[%clk
0:02:30.4]} 11... Qd7 {[%clk 0:02:15.9]} 12. b4 {[%clk 0:02:23.1]} 12... Bb6
{[%clk 0:02:12.1]} 13. a4 {[%clk 0:02:19.5]} 13... c6 {[%clk 0:01:58]} 14. Nxb6
{[%clk 0:02:18.9]} 14... axb6 {[%clk 0:01:57.9]} 15. Qd3 {[%clk 0:02:15.8]}
15... Nh6 {[%clk 0:01:26]} 16. f4 {[%clk 0:02:10.1]} 16... O-O-O {[%clk
0:01:14.3]} 17. f5 {[%clk 0:02:06]} 17... Bxf5 {[%clk 0:01:06.9]} 18. exf5
{[%clk 0:02:05.9]} 18... Nxf5 {[%clk 0:01:07.8]} 19. O-O-O {[%clk 0:01:52.9]}
19... Nxh4 {[%clk 0:01:02.9]} 20. Qe4 {[%clk 0:01:52.5]} 20... d5 {[%clk
0:00:31]} 21. Qxh4 {[%clk 0:01:50.8]} 21... Qf5 {[%clk 0:00:27]} 22. Bd3 {[%clk
0:01:46.5]} 22... Qe5 {[%clk 0:00:24.4]} 23. Qd4 {[%clk 0:01:39.9]} 23... Qxd4
{[%clk 0:00:18.1]} 24. Bf5+ {[%clk 0:01:39.1]} 24... Kb8 {[%clk 0:00:19]} 25.
Rxd4 {[%clk 0:01:39.4]} 25... g6 {[%clk 0:00:19.5]} 26. Bd3 {[%clk 0:01:37.1]}
26... Rde8 {[%clk 0:00:17]} 27. Rf4 {[%clk 0:01:35.3]} 27... f5 {[%clk
0:00:17.2]} 28. h4 {[%clk 0:01:34.4]} 28... Re6 {[%clk 0:00:09.5]} 29. Kd2
{[%clk 0:01:33.7]} 29... Rhe8 {[%clk 0:00:08.8]} 30. h5 {[%clk 0:01:33.1]} 30...
gxh5 {[%clk 0:00:07.9]} 31. Rxf5 {[%clk 0:01:32.8]} 31... Re5 {[%clk 0:00:07.1]}
32. Rxe5 {[%clk 0:01:31]} 32... Rxe5 {[%clk 0:00:08]} 33. Bxh7 {[%clk
0:01:30.3]} 33... d4 {[%clk 0:00:07.6]} 34. Bd3 {[%clk 0:01:29.3]} 34... c5
{[%clk 0:00:07.5]} 35. Rg8+ {[%clk 0:01:26.6]} 35... Ka7 {[%clk 0:00:07.2]} 36.
b5 {[%clk 0:01:22.6]} 36... Re6 {[%clk 0:00:04.6]} 37. Rh8 {[%clk 0:01:21]}
37... Rf6 {[%clk 0:00:04.5]} 38. Ke2 {[%clk 0:01:20.5]} 38... Re6+ {[%clk
0:00:04.6]} 39. Kf1 {[%clk 0:01:20]} 39... Re5 {[%clk 0:00:05]} 40. f4 {[%clk
0:01:19.4]} 1-0

[Event "*** Titled Tuesday Blitz"]
[Site "Chess.com"]
[Date "2020.03.03"]
[Round "4"]
[White "Zkid"]
[Black "Jungle_Jaguar"]
[Result "1-0"]
[WhiteElo "2872"]
[BlackElo "2590"]
[TimeControl "180+1"]
[EndTime "9:41:25 PST"]
[Termination "Zkid won by checkmate"]

1. e4 {[%clk 0:02:57.2]} 1... e5 {[%clk 0:02:58.7]} 2. Nf3 {[%clk 0:02:55.8]}
2... Nc6 {[%clk 0:02:59.2]} 3. Bb5 {[%clk 0:02:55.9]} 3... a6 {[%clk 0:02:58.9]}
4. Ba4 {[%clk 0:02:56.2]} 4... Nf6 {[%clk 0:02:59]} 5. O-O {[%clk 0:02:56.5]}
5... Be7 {[%clk 0:02:56.4]} 6. d3 {[%clk 0:02:56.6]} 6... b5 {[%clk 0:02:52.3]}
7. Bb3 {[%clk 0:02:56.6]} 7... O-O {[%clk 0:02:50.4]} 8. a3 {[%clk 0:02:54.9]}
8... d5 {[%clk 0:02:44.8]} 9. exd5 {[%clk 0:02:54.7]} 9... Nxd5 {[%clk
0:02:45.7]} 10. Re1 {[%clk 0:02:53]} 10... Bf6 {[%clk 0:02:45.3]} 11. Nbd2
{[%clk 0:02:49.3]} 11... Bg4 {[%clk 0:02:35.9]} 12. h3 {[%clk 0:02:48.5]} 12...
Bh5 {[%clk 0:02:35.6]} 13. g4 {[%clk 0:02:27.6]} 13... Bg6 {[%clk 0:02:33.9]}
14. Ne4 {[%clk 0:02:27.8]} 14... Nf4 {[%clk 0:02:19.3]} 15. Bxf4 {[%clk
0:02:23.5]} 15... exf4 {[%clk 0:02:19.4]} 16. Nxf6+ {[%clk 0:02:06.2]} 16...
Qxf6 {[%clk 0:02:20.3]} 17. d4 {[%clk 0:02:03.3]} 17... Rad8 {[%clk 0:02:14]}
18. c3 {[%clk 0:02:01.5]} 18... h5 {[%clk 0:02:06.2]} 19. Qe2 {[%clk 0:01:44.5]}
19... hxg4 {[%clk 0:01:57.1]} 20. hxg4 {[%clk 0:01:45.4]} 20... Na5 {[%clk
0:01:52]} 21. Ba2 {[%clk 0:01:42.3]} 21... c5 {[%clk 0:01:39.5]} 22. dxc5 {[%clk
0:01:35.5]} 22... Bd3 {[%clk 0:01:36.4]} 23. Qe7 {[%clk 0:01:31.7]} 23... Qxe7
{[%clk 0:01:09.6]} 24. Rxe7 {[%clk 0:01:32.6]} 24... Bc4 {[%clk 0:01:10.3]} 25.
b4 {[%clk 0:01:25.9]} 25... Bxa2 {[%clk 0:01:00.5]} 26. Rxa2 {[%clk 0:01:26.8]}
26... Rd1+ {[%clk 0:01:00.9]} 27. Kg2 {[%clk 0:01:26.1]} 27... Nc4 {[%clk
0:01:01.1]} 28. a4 {[%clk 0:01:17.1]} 28... Rc1 {[%clk 0:00:58]} 29. axb5 {[%clk
0:01:16.1]} 29... axb5 {[%clk 0:00:58.9]} 30. Ng5 {[%clk 0:01:04]} 30... Rxc3
{[%clk 0:00:45.1]} 31. Raa7 {[%clk 0:01:03.5]} 31... f3+ {[%clk 0:00:24.6]} 32.
Kg3 {[%clk 0:01:01.7]} 32... Nd2 {[%clk 0:00:24.2]} 33. Nxf7 {[%clk 0:00:57.8]}
33... Nf1+ {[%clk 0:00:16.5]} 34. Kh4 {[%clk 0:00:56.1]} 34... Rc4 {[%clk
0:00:07.2]} 35. Ng5 {[%clk 0:00:40.2]} 35... Rff4 {[%clk 0:00:04.2]} 36. Rxg7+
{[%clk 0:00:39]} 36... Kf8 {[%clk 0:00:04]} 37. Ne6+ {[%clk 0:00:38.4]} 37...
Ke8 {[%clk 0:00:04.3]} 38. Rge7# {[%clk 0:00:39.3]} 1-0

[Event "*** Titled Tuesday Blitz"]
[Site "Chess.com"]
[Date "2020.03.03"]
[Round "4"]
[White "HouseOfDurin"]
[Black "ChelsieMonica"]
[Result "0-1"]
[WhiteElo "2117"]
[BlackElo "2150"]
[TimeControl "180+1"]
[EndTime "9:41:35 PST"]
[Termination "ChelsieMonica won on time"]

1. d4 {[%clk 0:03:00.9]} 1... Nf6 {[%clk 0:02:59.7]} 2. Bg5 {[%clk 0:03:01.3]}
2... c5 {[%clk 0:02:57.1]} 3. Bxf6 {[%clk 0:03:01]} 3... exf6 {[%clk 0:02:54.6]}
4. c3 {[%clk 0:03:01]} 4... d6 {[%clk 0:02:51.4]} 5. g3 {[%clk 0:02:53]} 5...
Be7 {[%clk 0:02:46.5]} 6. Bg2 {[%clk 0:02:52.1]} 6... O-O {[%clk 0:02:46]} 7. e3
{[%clk 0:02:49.2]} 7... Nc6 {[%clk 0:02:41.5]} 8. Ne2 {[%clk 0:02:44.5]} 8...
Bg4 {[%clk 0:02:39.7]} 9. h3 {[%clk 0:02:39.5]} 9... Bd7 {[%clk 0:02:35.7]} 10.
Nf4 {[%clk 0:02:24.6]} 10... Re8 {[%clk 0:02:19.4]} 11. O-O {[%clk 0:02:23.6]}
11... Bf8 {[%clk 0:02:15.8]} 12. Qd2 {[%clk 0:02:11.2]} 12... Qc8 {[%clk
0:02:08.4]} 13. Kh2 {[%clk 0:02:10.2]} 13... a5 {[%clk 0:01:52.4]} 14. Rd1
{[%clk 0:02:09.5]} 14... Rd8 {[%clk 0:01:49.5]} 15. Nd5 {[%clk 0:02:06.6]} 15...
Ra6 {[%clk 0:01:36.5]} 16. c4 {[%clk 0:01:48.6]} 16... Ne7 {[%clk 0:01:29.8]}
17. Nbc3 {[%clk 0:01:08.6]} 17... Nxd5 {[%clk 0:01:23]} 18. Bxd5 {[%clk
0:01:00.3]} 18... Bxh3 {[%clk 0:01:18.8]} 19. dxc5 {[%clk 0:01:00.5]} 19... Bg4
{[%clk 0:01:12.8]} 20. f3 {[%clk 0:00:55.2]} 20... Bh5 {[%clk 0:01:12.4]} 21. g4
{[%clk 0:00:37.7]} 21... Bg6 {[%clk 0:01:10.8]} 22. cxd6 {[%clk 0:00:36.2]}
22... Raxd6 {[%clk 0:01:02.2]} 23. b3 {[%clk 0:00:21.9]} 23... h5 {[%clk
0:00:56.7]} 24. gxh5 {[%clk 0:00:16.4]} 24... Bxh5 {[%clk 0:00:55.1]} 25. Kg2
{[%clk 0:00:16.5]} 25... Qf5 {[%clk 0:00:52.5]} 26. Rh1 {[%clk 0:00:14.8]} 26...
Rxd5 {[%clk 0:00:52.1]} 27. Nxd5 {[%clk 0:00:13.2]} 27... Bxf3+ {[%clk
0:00:49.3]} 28. Kg1 {[%clk 0:00:10.9]} 28... Qg4+ {[%clk 0:00:47.4]} 29. Kf1
{[%clk 0:00:05.8]} 29... Bxh1 {[%clk 0:00:45.9]} 30. Qf2 {[%clk 0:00:01.5]}
30... Bxd5 {[%clk 0:00:40.9]} 31. cxd5 {[%clk 0:00:02.4]} 31... Rxd5 {[%clk
0:00:40.6]} 32. Qg2 {[%clk 0:00:02.6]} 32... Rf5+ {[%clk 0:00:38.7]} 33. Kg1
{[%clk 0:00:02.4]} 33... Qh5 {[%clk 0:00:38.5]} 34. Qh2 {[%clk 0:00:01.5]} 34...
Rg5+ {[%clk 0:00:36.9]} 0-1

[Event "*** Titled Tuesday Blitz"]
[Site "Chess.com"]
[Date "2020.03.03"]
[Round "4"]
[White "StockholmMissile"]
[Black "Ariadna_Atreides"]
[Result "1/2-1/2"]
[WhiteElo "2376"]
[BlackElo "2118"]
[TimeControl "180+1"]
[EndTime "9:41:41 PST"]
[Termination "Game drawn by repetition"]

1. e4 {[%clk 0:03:00.9]} 1... c5 {[%clk 0:02:37.7]} 2. Nf3 {[%clk 0:02:59.8]}
2... d6 {[%clk 0:02:35.6]} 3. d4 {[%clk 0:02:59.4]} 3... cxd4 {[%clk 0:02:35.6]}
4. Nxd4 {[%clk 0:03:00.3]} 4... Nf6 {[%clk 0:02:36.1]} 5. Nc3 {[%clk 0:03:00.9]}
5... Nc6 {[%clk 0:02:36.2]} 6. Bg5 {[%clk 0:02:58.6]} 6... e6 {[%clk 0:02:35.4]}
7. Qd2 {[%clk 0:02:54.6]} 7... a6 {[%clk 0:02:34.9]} 8. O-O-O {[%clk 0:02:51.2]}
8... Bd7 {[%clk 0:02:34.6]} 9. f4 {[%clk 0:02:47.9]} 9... Be7 {[%clk 0:02:32.2]}
10. Kb1 {[%clk 0:02:45.3]} 10... b5 {[%clk 0:02:31.7]} 11. Bxf6 {[%clk
0:02:10.1]} 11... gxf6 {[%clk 0:02:25.2]} 12. Nxc6 {[%clk 0:02:08.3]} 12... Bxc6
{[%clk 0:02:24.9]} 13. Bd3 {[%clk 0:02:06.8]} 13... Qb6 {[%clk 0:02:21.1]} 14.
Rhe1 {[%clk 0:02:04.3]} 14... O-O-O {[%clk 0:02:17.8]} 15. g3 {[%clk 0:01:58.7]}
15... h5 {[%clk 0:02:16.7]} 16. Qe3 {[%clk 0:01:52.8]} 16... Qxe3 {[%clk
0:02:13.3]} 17. Rxe3 {[%clk 0:01:53.7]} 17... Rdg8 {[%clk 0:02:10.1]} 18. Be2
{[%clk 0:01:42.6]} 18... Bd8 {[%clk 0:01:52.8]} 19. Rxd6 {[%clk 0:01:35.6]}
19... Kc7 {[%clk 0:01:49.5]} 20. Rd2 {[%clk 0:01:28.3]} 20... Kb7 {[%clk
0:01:38.9]} 21. a3 {[%clk 0:01:24.7]} 21... Bb6 {[%clk 0:01:38.4]} 22. Red3
{[%clk 0:01:24.3]} 22... a5 {[%clk 0:01:33.3]} 23. Bf3 {[%clk 0:01:20.5]} 23...
h4 {[%clk 0:01:19.5]} 24. g4 {[%clk 0:01:19]} 24... Bc7 {[%clk 0:01:19.4]} 25.
e5 {[%clk 0:01:02.4]} 25... b4 {[%clk 0:01:14]} 26. axb4 {[%clk 0:01:00.8]}
26... axb4 {[%clk 0:01:14]} 27. Ne4 {[%clk 0:00:41.5]} 27... fxe5 {[%clk
0:01:12.2]} 28. fxe5 {[%clk 0:00:32.7]} 28... Bxe5 {[%clk 0:01:10.4]} 29. Nc5+
{[%clk 0:00:31.4]} 29... Kb6 {[%clk 0:01:08.5]} 30. Nd7+ {[%clk 0:00:30.8]}
30... Bxd7 {[%clk 0:01:06.9]} 31. Rxd7 {[%clk 0:00:31.7]} 31... f6 {[%clk
0:01:03.1]} 32. Rb7+ {[%clk 0:00:30]} 32... Kc5 {[%clk 0:00:56.1]} 33. c3 {[%clk
0:00:14.7]} 33... bxc3 {[%clk 0:00:49]} 34. b4+ {[%clk 0:00:13.9]} 34... Kc4
{[%clk 0:00:48.9]} 35. Be2+ {[%clk 0:00:11.6]} 35... Kb3 {[%clk 0:00:47]} 36.
Bd1+ {[%clk 0:00:11.5]} 36... Kc4 {[%clk 0:00:44.5]} 37. Be2+ {[%clk 0:00:11.5]}
37... Kb3 {[%clk 0:00:44]} 38. Bd1+ {[%clk 0:00:11.5]} 38... Kc4 {[%clk
0:00:41.6]} 39. Be2+ {[%clk 0:00:08.6]} 1/2-1/2

[Event "*** Titled Tuesday Blitz"]
[Site "Chess.com"]
[Date "2020.03.03"]
[Round "4"]
[White "Keaton87"]
[Black "Thunderbolt1909"]
[Result "1-0"]
[WhiteElo "2659"]
[BlackElo "2380"]
[TimeControl "180+1"]
[EndTime "9:41:43 PST"]
[Termination "Keaton87 won on time"]

1. d4 {[%clk 0:02:17.5]} 1... Nf6 {[%clk 0:02:55.5]} 2. Bg5 {[%clk 0:02:17.1]}
2... e6 {[%clk 0:02:55.1]} 3. Nd2 {[%clk 0:02:17]} 3... h6 {[%clk 0:02:54.3]} 4.
Bh4 {[%clk 0:02:16.9]} 4... d5 {[%clk 0:02:53.2]} 5. e3 {[%clk 0:02:16.9]} 5...
Bd6 {[%clk 0:02:52.5]} 6. Bd3 {[%clk 0:02:16.8]} 6... Nbd7 {[%clk 0:02:52.9]} 7.
f4 {[%clk 0:02:16.9]} 7... g5 {[%clk 0:02:46.4]} 8. fxg5 {[%clk 0:02:16.2]} 8...
hxg5 {[%clk 0:02:46.8]} 9. Bxg5 {[%clk 0:02:14.3]} 9... Rxh2 {[%clk 0:02:41.3]}
10. Rxh2 {[%clk 0:02:13.6]} 10... Bxh2 {[%clk 0:02:42.2]} 11. Ngf3 {[%clk
0:02:11.9]} 11... Bg3+ {[%clk 0:02:41.9]} 12. Ke2 {[%clk 0:02:12.2]} 12... c5
{[%clk 0:02:29.5]} 13. c3 {[%clk 0:02:08.3]} 13... c4 {[%clk 0:02:16.2]} 14. Bc2
{[%clk 0:02:07]} 14... Qb6 {[%clk 0:02:12.6]} 15. Ba4 {[%clk 0:01:37.1]} 15...
Ke7 {[%clk 0:01:20]} 16. Qh1 {[%clk 0:01:28.7]} 16... Qxb2 {[%clk 0:01:11.4]}
17. Qh8 {[%clk 0:00:25.4]} 17... Qxa1 {[%clk 0:00:36]} 18. Bxd7 {[%clk
0:00:16.8]} 18... Kxd7 {[%clk 0:00:36.9]} 19. Bxf6 {[%clk 0:00:14.5]} 19... Qxc3
{[%clk 0:00:20.6]} 20. Qd8+ {[%clk 0:00:14.2]} 20... Kc6 {[%clk 0:00:20.9]} 21.
Be5 {[%clk 0:00:05.6]} 21... Qd3+ {[%clk 0:00:19]} 22. Kd1 {[%clk 0:00:05.4]}
22... Bd7 {[%clk 0:00:08]} 23. Qxa8 {[%clk 0:00:04.9]} 23... Kb6 {[%clk
0:00:08.7]} 24. Qd8+ {[%clk 0:00:04.5]} 24... Kc6 {[%clk 0:00:05]} 25. Qc7+
{[%clk 0:00:04.5]} 25... Kb5 {[%clk 0:00:04.3]} 26. Qxd7+ {[%clk 0:00:05.4]}
26... Kb4 {[%clk 0:00:05.1]} 27. Qxb7+ {[%clk 0:00:06]} 27... Kc3 {[%clk
0:00:05.1]} 28. Qb1 {[%clk 0:00:04.3]} 28... Qxe3 {[%clk 0:00:02.7]} 29. Qc1+
{[%clk 0:00:04.4]} 29... Kb4 {[%clk 0:00:01.3]} 30. Bxg3 {[%clk 0:00:04.6]} 1-0

[Event "*** Titled Tuesday Blitz"]
[Site "Chess.com"]
[Date "2020.03.03"]
[Round "4"]
[White "SlavenPastar"]
[Black "politeplayer"]
[Result "0-1"]
[WhiteElo "2478"]
[BlackElo "2273"]
[TimeControl "180+1"]
[EndTime "9:41:46 PST"]
[Termination "politeplayer won on time"]

1. d4 {[%clk 0:03:00.9]} 1... g6 {[%clk 0:02:59.9]} 2. c4 {[%clk 0:02:46.9]}
2... Bg7 {[%clk 0:02:59.8]} 3. Nc3 {[%clk 0:02:47.2]} 3... c5 {[%clk 0:02:57.6]}
4. e3 {[%clk 0:02:44.7]} 4... Nf6 {[%clk 0:02:52.8]} 5. Nf3 {[%clk 0:02:44.4]}
5... O-O {[%clk 0:02:51.2]} 6. Be2 {[%clk 0:02:41.3]} 6... d6 {[%clk 0:02:50.6]}
7. O-O {[%clk 0:02:41.3]} 7... cxd4 {[%clk 0:02:49]} 8. exd4 {[%clk 0:02:38.7]}
8... Nc6 {[%clk 0:02:43.8]} 9. Bg5 {[%clk 0:02:38.3]} 9... Bf5 {[%clk
0:02:40.9]} 10. Rc1 {[%clk 0:02:34.4]} 10... Ne4 {[%clk 0:02:37.3]} 11. Be3
{[%clk 0:02:24.4]} 11... Nxc3 {[%clk 0:02:33.8]} 12. Rxc3 {[%clk 0:02:25.3]}
12... Qa5 {[%clk 0:02:26.7]} 13. a3 {[%clk 0:02:20.9]} 13... e5 {[%clk
0:02:19.2]} 14. b4 {[%clk 0:02:12.5]} 14... Qc7 {[%clk 0:02:16.3]} 15. d5 {[%clk
0:02:03.9]} 15... e4 {[%clk 0:02:08.6]} 16. Nd4 {[%clk 0:01:58.3]} 16... Nxd4
{[%clk 0:01:54.3]} 17. Bxd4 {[%clk 0:01:59.2]} 17... a5 {[%clk 0:01:50.8]} 18.
Bxg7 {[%clk 0:01:58.1]} 18... Kxg7 {[%clk 0:01:50.5]} 19. Qd4+ {[%clk 0:01:59]}
19... Kg8 {[%clk 0:01:46.1]} 20. g4 {[%clk 0:01:58.9]} 20... axb4 {[%clk
0:01:41]} 21. axb4 {[%clk 0:01:51.3]} 21... Ra2 {[%clk 0:01:38.9]} 22. Re3
{[%clk 0:01:42.7]} 22... Bd7 {[%clk 0:01:23]} 23. Rxe4 {[%clk 0:01:39.5]} 23...
Qd8 {[%clk 0:01:11]} 24. Qe3 {[%clk 0:01:32.2]} 24... Qf6 {[%clk 0:01:01.9]} 25.
h3 {[%clk 0:01:21.4]} 25... Rfa8 {[%clk 0:00:54.5]} 26. Re7 {[%clk 0:01:17.3]}
26... R8a3 {[%clk 0:00:52]} 27. Bd3 {[%clk 0:01:09.6]} 27... Rxd3 {[%clk
0:00:48.1]} 28. Qe4 {[%clk 0:00:54]} 28... Rd1 {[%clk 0:00:38.9]} 29. Qe3 {[%clk
0:00:20.5]} 29... Rxf1+ {[%clk 0:00:33.8]} 30. Kxf1 {[%clk 0:00:21.4]} 30... Ba4
{[%clk 0:00:31.8]} 31. c5 {[%clk 0:00:18.1]} 31... Ra1+ {[%clk 0:00:27.2]} 32.
Kg2 {[%clk 0:00:17.3]} 32... Rd1 {[%clk 0:00:23.9]} 33. Rxb7 {[%clk 0:00:09.2]}
33... Qa1 {[%clk 0:00:19.9]} 34. Qf4 {[%clk 0:00:02.1]} 34... Rg1+ {[%clk
0:00:18.2]} 0-1